bitfinex-derivatives/quotes_SOLF0:USTF0_20260110
["timestamp","ask_amount","ask_price","bid_price","bid_amount"]
[1768028060147,5.67955915,136.13,136.1,0.04913014]
[1768028060444,0.32020357,136.14,136.1,0.04913014]
[1768028060748,5.9997718,136.13,136.1,0.04913014]
[1768028060948,0.32020357,136.13,136.1,0.04913014]
[1768028116699,0.32020357,136.13,136.04,0.04991018]
[1768028116993,0.32020357,136.13,136.01,2.43165143]
[1768028116994,0.31891133,136.11,136.01,2.43165143]
[1768028117399,0.31891133,136.11,136.04,6.6241]
[1768028118002,0.0489117,136.09,136.04,6.6241]
[1768028118894,0.0489117,136.09,136.04,6.67323014]
[1768028130308,0.0489117,136.09,136.05,0.04913014]
[1768028133404,0.35416976,136.09,136.04,6.6241]
[1768028133713,0.35416976,136.09,136.03,0.04908989]
[1768028134207,0.30525806,136.08,136.01,0.04908989]
[1768028135105,0.35360916,136.06,136.01,6.67468989]
[1768028136610,0.35360916,136.06,135.99,94.63920386]
[1768028136809,0.35360916,136.06,135.99,93.53548989]
[1768028139512,0.30525806,136.05,135.99,86.90908989]
[1768028139724,0.30525806,136.05,135.99,0.04908989]
[1768028144413,0.30525806,136.04,135.97,0.04908989]
[1768028145418,0.05450899,136.02,135.97,0.04908989]
[1768028145617,0.05450899,136.02,135.98,0.04908989]
[1768028158825,0.05450899,136.02,135.98,6.67618989]
[1768028159420,0.30525806,136.03,135.98,6.67618989]
[1768028159717,6.6232,136.07,135.99,0.10319163]
[1768028159718,0.30931714,136.06,135.99,0.10319163]
[1768028165226,0.30931714,136.06,135.99,6.72979163]
[1768028167826,6.6222,136.09,136.01,0.04929232]
[1768028168128,0.31026269,136.08,136.01,0.04929232]
[1768028168828,0.31026269,136.08,136.03,0.04636843]
[1768028171826,0.31026269,136.08,135.99,6.6265]
[1768028171827,6.6231,136.07,135.99,6.6265]
[1768028172031,0.31026269,136.06,135.99,6.6265]
[1768028174125,0.31026269,136.04,135.98,0.09566075]
[1768028174431,0.3578828,136.04,135.98,0.09566075]
[1768028175621,6.9822828,136.04,135.98,0.09566075]
[1768028181136,0.31026269,136.03,135.98,0.09566075]
[1768028193752,0.31026269,136.03,135.97,6.6275]
[1768028207567,0.31026269,136.03,135.97,6.7232498]
[1768028208172,0.04762011,136.04,135.99,0.0957498]
[1768028208670,0.33185632,136.05,135.99,0.0957498]
[1768028208968,5.5145894,136.04,135.99,0.0957498]
[1768028209167,0.33185632,136.05,135.99,0.0957498]
[1768028209367,5.51474349,136.04,135.99,0.0957498]
[1768028209569,0.33185632,136.05,135.99,0.0957498]
[1768028209868,5.51487784,136.04,135.99,0.0957498]
[1768028210070,0.33185632,136.04,135.94,6.6287]
[1768028210371,0.33185632,136.02,135.93,0.0957498]
[1768028211274,0.33185632,136.02,135.96,6.6279]
[1768028211680,0.04699228,135.99,135.96,6.6279]
[1768028212176,0.32051628,136.0,135.96,6.6279]
[1768028214579,0.04710451,135.99,135.96,6.6279]
[1768028219576,0.04710451,135.99,135.94,6.72458798]
[1768028222581,0.04710451,135.99,135.95,0.09588798]
[1768028223880,0.04710451,135.99,135.95,6.72448798]
[1768028228583,0.04710451,135.99,135.96,0.09585211]
[1768028230184,0.04710451,135.99,135.96,0.14386148]
[1768028232979,0.34704204,135.99,135.96,0.04800937]
[1768028233380,0.04710451,135.99,135.96,0.04800937]
[1768028246805,0.29993753,136.01,135.96,0.14386148]
[1768028247197,0.29993753,136.03,135.96,0.14386148]
[1768028247398,5.49669269,136.02,135.96,0.14386148]
[1768028247593,6.92473753,136.03,135.96,0.14386148]
[1768028247795,5.7967025,136.02,135.96,0.14386148]
[1768028247999,0.29993753,136.02,135.96,0.14386148]
[1768028252212,5.49940156,136.01,135.96,0.14386148]
[1768028252402,0.29993753,136.02,135.96,0.14386148]
[1768028252603,5.49946864,136.01,135.96,0.14386148]
[1768028252812,0.29993753,136.02,135.96,0.14386148]
[1768028253007,0.29993753,136.02,135.96,6.77196148]
[1768028254807,0.29993753,136.02,135.97,6.72336555]
[1768028267528,6.95183665,136.04,135.98,0.09576555]
[1768028267723,5.420867,136.03,135.98,0.09576555]
[1768028267926,5.420867,136.02,135.98,0.09576555]
[1768028268228,6.95183665,136.04,135.98,0.09576555]
[1768028268423,5.420867,136.03,135.99,0.0563959]
[1768028268725,5.420867,136.02,135.99,0.0563959]
[1768028268923,6.95183665,136.04,135.99,0.0563959]
[1768028269234,5.42080316,136.03,135.99,0.15216145]
[1768028269527,0.32753665,136.04,135.99,0.15216145]
[1768028281139,0.32753665,136.04,135.99,0.0563959]
[1768028282635,0.30832635,136.03,135.99,0.0563959]
[1768028294043,0.30832635,136.03,135.96,6.72344014]
[1768028294246,0.38248935,136.02,135.96,6.72344014]
[1768028294747,0.38248935,136.02,135.96,0.09574014]
[1768028295644,7.00778935,136.02,135.96,0.09574014]
[1768028297548,0.3263146,136.01,135.96,0.09574014]
[1768028309557,0.3263146,136.01,135.95,6.6285]
[1768028314360,0.3263146,136.01,135.95,6.7243562]
[1768028335491,0.3263146,136.01,135.96,0.09581083]
[1768028366912,0.32679907,135.99,135.93,0.09582863]
[1768028367813,0.04968996,135.97,135.93,0.09582863]
[1768028390339,0.04968996,135.97,135.93,6.72512863]
[1768028395346,0.04968996,135.97,135.93,8.20512863]
[1768028400944,0.04968996,135.97,135.94,0.09589676]
[1768028401139,0.3319535,135.99,135.94,0.1457003]
[1768028412352,0.3112128,136.02,135.95,0.09586516]
[1768028413253,0.3112128,136.02,135.97,0.04953803]
[1768028418655,0.3657757,136.01,135.93,6.72506516]
[1768028418860,0.3657757,136.01,135.93,0.09586516]
[1768028419161,0.3112128,136.01,135.93,0.09586516]
[1768028419458,0.3112128,136.0,135.93,6.72536516]
[1768028420256,0.0552606,135.98,135.93,6.72536516]
[1768028429070,0.0552606,135.98,135.94,0.14540319]
[1768028432672,0.0552606,135.98,135.94,6.77440319]
[1768028438275,0.0552606,135.98,135.95,6.6285]
[1768028446082,0.3153366,136.01,135.95,6.7739053]
[1768028446475,0.3153366,136.01,135.95,6.82989722]
[1768028458698,0.32970478,136.03,135.96,0.14535879]
[1768028458886,5.28315312,136.02,135.96,0.14535879]
[1768028459193,0.32970478,136.03,135.96,0.14535879]
[1768028459396,5.61248046,136.02,135.96,0.14535879]
[1768028459587,0.32970478,136.02,135.98,0.04711702]
[1768028462395,1.48471308,136.04,135.98,0.19247581]
[1768028462594,5.61143732,136.03,135.98,0.19247581]
[1768028462793,5.28173254,136.02,135.98,0.19247581]
[1768028462996,0.32970478,136.03,135.98,0.19247581]
[1768028470596,0.32970478,136.03,135.98,6.81957581]
[1768028471101,0.30519545,136.05,135.99,0.14532855]
[1768028481517,0.30519545,136.05,136.0,6.77142855]
[1768028482517,0.30519545,136.05,136.01,0.05101337]
[1768028493923,0.30519545,136.05,135.97,0.14532855]
[1768028494126,0.30419212,136.03,135.97,0.14532855]
[1768028494632,0.30419212,136.03,135.95,0.19633497]
[1768028495427,103.0322,136.06,135.95,0.19633497]
[1768028495428,0.05076126,136.0,135.95,0.19633497]
[1768028495634,0.35495338,136.0,135.95,6.82493497]
[1768028499237,0.35495338,136.0,135.9,9.13576807]
[1768028499238,0.05076126,136.0,135.96,6.82433497]
[1768028499536,0.30419212,136.02,135.96,6.87297455]
[1768028500835,0.30419212,136.02,135.97,0.19633497]
[1768028504234,0.30419212,136.04,135.98,0.19633497]
[1768028505131,0.30419212,136.04,136.0,0.04959482]
[1768028520541,0.30419212,136.04,135.98,0.19633497]
[1768028520747,0.04722344,136.03,135.98,0.19633497]
[1768028534067,0.3594138,136.03,135.97,6.6276]
[1768028534267,0.3594138,136.03,135.97,6.82392981]
[1768028537364,0.3594138,136.03,135.97,0.19632981]
[1768028537564,0.31219036,136.02,135.96,6.6279]
[1768028537768,0.31219036,136.02,135.93,103.1252]
[1768028537769,0.31219036,136.02,135.95,0.19632981]
[1768028539573,6.93759036,136.02,135.95,0.19632981]
[1768028539773,0.31219036,136.01,135.94,6.6287]
[1768028539965,0.31219036,136.01,135.94,6.82502981]
[1768028540371,0.04678522,135.99,135.94,6.82502981]
[1768028545779,0.04678522,135.99,135.95,0.19632981]
[1768028554286,0.04678522,135.99,135.95,6.82482981]
[1768028554490,0.30995492,136.01,135.96,0.24732885]
[1768028555992,0.30995492,136.03,135.97,0.19644208]
[1768028556795,0.30995492,136.03,135.99,0.05103333]
[1768028559889,0.30995492,136.02,135.97,0.19644208]
[1768028560287,0.36168558,136.02,135.97,0.19644208]
[1768028599830,0.05173066,136.02,135.98,0.19645282]
[1768028606544,6.94519089,136.06,136.0,0.19645282]
[1768028607535,0.32159089,136.06,136.0,0.19645282]
[1768028607937,0.32159089,136.07,136.02,0.04857154]
[1768028614860,0.32159089,136.07,136.02,0.2448561]
[1768028619559,0.32159089,136.07,136.02,6.8698561]
[1768028628759,1.15493609,136.09,136.03,0.19628456]
[1768028628960,1.47779321,136.09,136.03,0.19628456]
[1768028629864,0.32285712,136.08,136.03,0.19628456]
[1768028631370,6.94728717,136.1,136.03,0.19628456]
[1768028631769,0.32568717,136.09,136.03,0.19628456]
[1768028632170,0.32568717,136.09,136.05,0.05250525]
[1768028664820,0.38281165,136.08,136.0,6.6258]
[1768028665314,0.3302587,136.08,136.0,6.6258]
[1768028665513,0.3302587,136.08,136.0,6.87462393]
[1768028666115,0.05022875,136.05,136.0,6.87462393]
[1768028669217,0.05022875,136.05,136.01,6.6256]
[1768028671021,0.05022875,136.05,136.01,6.87442393]
[1768028674721,6.9294316,136.08,136.02,0.24890824]
[1768028675017,0.3070316,136.08,136.03,6.87340824]
[1768028675218,0.3070316,136.1,136.03,6.87340824]
[1768028676125,0.3070316,136.1,136.05,0.04982483]
[1768028680025,0.3070316,136.12,136.05,0.29873307]
[1768028680427,0.3070316,136.12,136.05,0.24890824]
[1768028681033,0.3070316,136.12,136.07,0.05177449]
[1768028684929,6.9274316,136.12,136.07,0.05177449]
[1768028687127,0.3070316,136.12,136.07,0.05177449]
[1768028689435,0.3070316,136.12,136.07,0.30068273]
[1768028697051,6.6197,136.14,136.07,0.30068273]
[1768028697052,6.94720189,136.14,136.07,0.30068273]
[1768028700055,0.32750189,136.14,136.07,0.30068273]
[1768028701256,0.32750189,136.14,136.08,0.24869656]
[1768028701446,0.32750189,136.16,136.09,0.24869656]
[1768028701758,118.19080048,136.22,136.09,0.24869656]
[1768028701759,0.32750189,136.21,136.09,0.24869656]
[1768028702364,0.32750189,136.21,136.14,0.05347907]
[1768028702569,0.32750189,136.18,136.14,0.05347907]
[1768028704459,0.31398899,136.17,136.11,0.24869656]
[1768028704658,0.36104643,136.17,136.11,0.24869656]
[1768028704852,0.36104643,136.17,136.09,6.6214]
[1768028705056,0.31398899,136.15,136.08,0.24842169]
[1768028705957,0.05234655,136.13,136.08,0.24842169]
[1768028706366,0.05234655,136.13,136.08,6.87062169]
[1768028708060,0.05234655,136.13,136.09,0.24842169]
[1768028710958,0.31398899,136.16,136.1,0.30423526]
[1768028711367,0.31398899,136.16,136.1,0.24842169]
[1768028712367,0.31398899,136.16,136.12,0.04686219]
[1768028713270,0.31398899,136.18,136.12,0.29528388]
[1768028714572,0.31398899,136.18,136.12,6.91548388]
[1768028717566,0.31398899,136.18,136.12,0.29528388]
[1768028752987,0.31271482,136.17,136.12,0.04686219]
[1768028753386,0.31271482,136.16,136.12,0.04686219]
[1768028753588,0.31271482,136.15,136.08,0.24852612]
[1768028754893,0.04824141,136.13,136.08,0.24852612]
[1768028756192,0.36095623,136.13,136.08,0.24852612]
[1768028766998,0.36095623,136.13,136.08,6.87072612]
[1768028786413,0.36095623,136.13,136.08,0.24852612]
[1768028791106,0.04824141,136.13,136.08,0.24852612]
[1768028802522,0.04824141,136.13,136.09,0.29552598]
[1768028806428,0.04824141,136.13,136.1,0.29552598]
[1768028806616,0.31174796,136.15,136.1,0.3437932]
[1768028807328,6.92909606,136.17,136.1,0.3437932]
[1768028808218,0.31089606,136.17,136.11,0.29552598]
[1768028809123,6.92829606,136.19,136.11,0.29552598]
[1768028810031,6.92829606,136.19,136.14,0.05429183]
[1768028811627,0.32883245,136.18,136.14,0.05429183]
[1768028813234,0.32883245,136.17,136.12,0.29552598]
[1768028813532,0.38536815,136.17,136.12,0.29552598]
[1768028815630,0.38536815,136.17,136.1,6.6212]
[1768028815838,0.38536815,136.17,136.09,0.29539228]
[1768028815839,0.32883245,136.16,136.09,0.29539228]
[1768028816524,0.32883245,136.15,136.09,0.29539228]
[1768028816721,0.04978463,136.14,136.09,0.29539228]
[1768028817531,0.04978463,136.14,136.09,6.91709228]
[1768028820239,0.04978463,136.14,136.09,0.29539228]
[1768028820428,0.37861708,136.14,136.09,0.29539228]
[1768028824238,0.37861708,136.14,136.08,6.6222]
[1768028824432,0.37861708,136.14,136.08,6.9180452]
[1768028827236,0.37861708,136.14,136.09,0.2958452]
[1768028836738,0.04978463,136.14,136.09,0.2958452]
[1768028843850,0.3592873,136.14,136.09,0.2958452]
[1768028859462,0.3592873,136.14,136.08,6.6222]
[1768028859869,0.3592873,136.14,136.08,6.9177247]
[1768028867166,0.3592873,136.14,136.08,0.2955247]
[1768028867863,0.30411676,136.12,136.05,86.84]
[1768028868380,0.30411676,136.12,136.06,0.2955247]
[1768028868677,0.05031421,136.1,136.06,0.2955247]
[1768028880185,0.37872564,136.1,136.04,0.29561708]
[1768028880375,0.37872564,136.1,136.0,88.012777]
[1768028880878,6.95041143,136.09,136.01,6.6256]
[1768028881278,0.04863315,136.06,136.01,6.6256]
[1768028881477,0.04863315,136.06,135.99,7.779077]
[1768028881679,0.04863315,136.06,135.99,88.012777]
[1768028881878,6.95081143,136.08,135.99,88.012777]
[1768028882581,6.95081143,136.08,136.02,0.05541057]
[1768028882883,0.32841143,136.07,136.02,0.05541057]
[1768028887886,0.30474594,136.09,136.02,0.05541057]
[1768028890288,0.30474594,136.09,136.02,6.68051057]
[1768028900893,6.92664594,136.09,136.02,6.68051057]
[1768028902185,0.30474594,136.09,136.02,6.68051057]
[1768028903495,6.92604594,136.11,136.02,6.68051057]
[1768028903896,6.92604594,136.11,136.02,6.6251]
[1768028904289,6.92604594,136.11,136.05,0.05029263]
[1768028907300,0.30474594,136.1,136.05,0.05029263]
[1768028940119,0.30431401,136.09,136.05,0.05029263]
[1768028946829,0.30431401,136.09,136.05,6.67399263]
[1768028947235,0.30430667,136.11,136.05,6.67399263]
[1768028965247,0.30430667,136.11,136.06,6.6232]
[1768028991061,6.6194,136.14,136.06,6.6232]
[1768028991368,5.5574224,136.13,136.06,6.6232]
[1768028991571,5.25658793,136.12,136.06,6.6232]
[1768028991866,5.25658793,136.12,136.08,0.05283778]
[1768028994376,5.5574224,136.12,136.08,0.05283778]
[1768028994570,0.30083447,136.12,136.08,0.05283778]
[1768029023799,124.9964,136.21,136.11,0.24839066]
[1768029023995,108.1827715,136.2,136.11,0.24839066]
[1768029024195,5.2584715,136.19,136.09,0.24839066]
[1768029024396,5.2584715,136.18,136.09,0.24839066]
[1768029024598,92.1184715,136.17,136.09,0.24839066]
[1768029024896,0.05287455,136.15,136.09,0.24839066]
[1768029025690,0.05287455,136.15,136.1,0.29835756]
[1768029026502,0.05287455,136.15,136.1,6.91955756]
[1768029029906,0.37082032,136.15,136.08,6.92065756]
[1768029030397,0.31794577,136.15,136.08,6.92065756]
[1768029030798,0.05175162,136.13,136.08,6.92065756]
[1768029034308,0.31794577,136.15,136.1,0.2983053]
[1768029034609,0.31244005,136.17,136.1,0.2983053]
[1768029035709,0.31244005,136.17,136.12,0.05440462]
[1768029037305,0.31244005,136.16,136.12,0.05440462]
[1768029047823,0.31244005,136.15,136.12,0.05440462]
[1768029048017,0.31244005,136.15,136.09,6.9199053]
[1768029048219,0.36054113,136.15,136.09,6.9199053]
[1768029064622,0.36054113,136.15,136.1,0.30083291]
[1768029075937,0.30464439,136.14,136.08,0.30083291]
[1768029076830,0.04637762,136.12,136.08,0.30083291]
[1768029111579,6.6188,136.16,136.09,0.30675972]
[1768029111784,5.57489028,136.15,136.09,0.30675972]
[1768029111973,5.57489028,136.14,136.09,0.30675972]
[1768029112174,6.6188,136.16,136.09,0.30675972]
[1768029112380,5.50051099,136.15,136.09,0.30675972]
[1768029112586,6.6188,136.16,136.1,0.30675972]
[1768029112786,5.50065575,136.15,136.1,0.30675972]
[1768029113082,6.6188,136.16,136.1,0.30675972]
[1768029113384,5.50065575,136.15,136.1,0.30675972]
[1768029113580,6.6188,136.16,136.1,0.30675972]
[1768029113781,5.50080846,136.15,136.1,0.30675972]
[1768029113984,6.6188,136.16,136.1,0.30675972]
[1768029114186,5.50081174,136.15,136.1,0.30675972]
[1768029114485,6.6188,136.16,136.1,0.30675972]
[1768029114687,5.50097148,136.15,136.1,0.30675972]
[1768029114890,6.6188,136.16,136.1,0.30675972]
[1768029115088,5.50097148,136.15,136.1,0.30675972]
[1768029115390,5.50113627,136.14,136.1,0.30675972]
[1768029115686,6.92195384,136.16,136.1,0.30675972]
[1768029115884,5.50113627,136.15,136.1,0.30675972]
[1768029116087,5.50113627,136.14,136.1,0.30675972]
[1768029116281,6.92195384,136.16,136.1,0.30675972]
[1768029116487,5.50118503,136.15,136.1,0.30675972]
[1768029116684,5.50118503,136.14,136.1,0.30675972]
[1768029116881,6.92195384,136.16,136.1,0.30675972]
[1768029117090,5.50118503,136.15,136.1,0.30675972]
[1768029117289,5.50123252,136.14,136.1,0.30675972]
[1768029117590,0.30315384,136.16,136.1,0.30675972]
[1768029117789,5.50123252,136.15,136.1,0.30675972]
[1768029117987,5.50123252,136.14,136.1,0.30675972]
[1768029118184,0.30315384,136.19,136.11,0.30675972]
[1768029118388,5.49975858,136.18,136.11,1.15320656]
[1768029118693,0.30315384,136.21,136.14,6.6191]
[1768029118990,5.49813947,136.2,136.15,0.30675972]
[1768029119190,0.30315384,136.21,136.15,0.30675972]
[1768029119890,0.30315384,136.21,136.15,6.92545972]
[1768029122186,15.27920048,136.22,136.19,0.30675972]
[1768029122187,14.57071899,136.22,136.19,0.30675972]
[1768029126291,14.57071899,136.22,136.17,0.30618581]
[1768029126497,14.89515185,136.22,136.17,0.30618581]
[1768029128093,14.57071899,136.22,136.18,0.30618581]
[1768029135802,11.74493629,136.22,136.19,0.30618581]
[1768029136000,0.32443286,136.26,136.19,0.30618581]
[1768029137705,0.32443286,136.26,136.2,6.6163]
[1768029137902,0.32443286,136.26,136.15,102.9571]
[1768029138407,0.32443286,136.26,136.14,86.8]
[1768029138708,0.32443286,136.27,136.18,102.9368]
[1768029139703,0.32443286,136.27,136.2,6.6163]
[1768029140410,0.32443286,136.27,136.21,6.6157]
[1768029142910,0.32443286,136.27,136.18,102.9368]
[1768029144105,0.32443286,136.27,136.16,102.9491]
[1768029145616,0.32443286,136.26,136.19,6.6168]
[1768029146709,0.32443286,136.26,136.2,6.6163]
[1768029149422,0.32443286,136.26,136.18,6.6171]
[1768029150714,0.32443286,136.25,136.16,102.9506]
[1768029151018,0.32443286,136.29,136.16,102.9506]
[1768029151222,0.32443286,136.27,136.16,102.9506]
[1768029152621,0.32443286,136.27,136.19,6.6168]
[1768029153115,0.30397491,136.26,136.19,6.6168]
[1768029153925,0.30397491,136.24,136.14,189.7642]
[1768029154125,0.30397491,136.24,136.12,102.9806]
[1768029155025,87.08397491,136.27,136.15,102.9594]
[1768029155226,0.30397491,136.27,136.15,102.9594]
[1768029155930,0.30397491,136.25,136.18,6.6173]
[1768029162432,0.30397491,136.25,136.19,6.6166]
[1768029163828,0.30397491,136.25,136.17,6.6178]
[1768029164934,0.30397491,136.25,136.2,0.05645238]
[1768029164935,0.04771537,136.22,136.2,0.05645238]
[1768029221482,0.04771537,136.22,136.18,6.6174]
[1768029224486,0.04771537,136.22,136.16,93.3981]
[1768029224487,0.36773648,136.22,136.16,93.3981]
[1768029225888,0.36773648,136.22,136.17,6.6179]
[1768029227789,0.04771537,136.22,136.17,6.6179]
[1768029240304,0.37755243,136.22,136.17,6.6179]
[1768029245608,0.37755243,136.22,136.18,0.05286292]
[1768029263821,0.31689597,136.21,136.14,6.619]
[1768029265328,0.0507981,136.19,136.14,6.619]
[1768029266625,0.0507981,136.19,136.11,10.86038803]
[1768029266626,0.31689597,136.18,136.11,9.06132595]
[1768029266923,0.31689597,136.16,136.03,112.10972595]
[1768029267128,0.31689597,136.16,136.03,103.0484]
[1768029267425,0.0514822,136.11,136.03,103.0484]
[1768029268523,0.0514822,136.11,136.05,6.6235]
[1768029269521,0.0514822,136.11,136.06,6.6231]
[1768029271633,0.31689597,136.14,136.06,103.0284]
[1768029272628,0.31689597,136.14,136.08,6.622]
[1768029273026,0.05514851,136.11,136.08,6.622]
[1768029278134,0.05514851,136.11,136.06,103.0284]
[1768029278135,0.05514851,136.11,136.06,6.6229]
[1768029279235,0.05514851,136.11,136.07,6.6226]
[1768029298856,0.05514851,136.11,136.08,6.6222]
[1768029299357,0.31744937,136.14,136.08,6.6222]
[1768029299855,0.05081364,136.11,136.08,6.6222]
[1768029301155,0.31744937,136.16,136.02,110.67906208]
[1768029301359,0.31744937,136.21,136.08,103.013]
[1768029301559,0.31744937,136.19,136.08,189.853]
[1768029302559,0.31744937,136.17,136.11,6.6206]
[1768029311258,5.87169661,136.16,136.11,6.6206]
[1768029311563,0.31744937,136.17,136.11,6.6206]
[1768029311761,5.87169661,136.16,136.11,6.6206]
[1768029311959,0.31744937,136.17,136.11,6.6206]
[1768029312158,5.87169661,136.16,136.11,6.6206]
[1768029312354,0.31744937,136.17,136.11,6.6206]
[1768029312555,5.87112104,136.16,136.11,6.6206]
[1768029312863,0.31744937,136.17,136.11,6.6206]
[1768029313065,5.87111944,136.16,136.11,6.6206]
[1768029313260,0.3325249,136.19,136.1,102.9958]
[1768029314565,0.3325249,136.19,136.13,6.6198]
[1768029320971,0.3325249,136.19,136.14,6.6193]
[1768029322171,0.3325249,136.21,136.13,102.9762]
[1768029323269,0.3325249,136.21,136.16,6.6183]
[1768029327172,0.3325249,136.21,136.17,0.05250918]
[1768029327680,0.04932422,136.2,136.17,0.05250918]
[1768029347185,0.35925104,136.2,136.17,0.05250918]
[1768029347389,0.35925104,136.2,136.08,95.95892738]
[1768029347390,0.30992682,136.17,136.06,9.11892738]
[1768029347593,0.30992682,136.13,136.03,103.0497]
[1768029348691,0.05580341,136.09,136.06,6.6229]
[1768029350897,0.30992682,136.13,136.07,6.6226]
[1768029353699,0.30992682,136.13,136.06,0.0551885]
[1768029371911,0.30992682,136.13,136.06,6.6783885]
[1768029389238,0.30992682,136.13,136.07,6.6227]
[1768029390122,5.9575099,136.12,136.07,6.6227]
[1768029390326,0.30992682,136.13,136.07,6.6227]
[1768029390527,5.95777217,136.12,136.07,6.6227]
[1768029390722,0.30992682,136.13,136.07,6.6227]
[1768029390932,5.95777382,136.12,136.07,6.6227]
[1768029391129,0.30992682,136.13,136.07,6.6227]
[1768029391436,5.95495872,136.12,136.07,6.6227]
[1768029391738,0.30992682,136.13,136.07,6.6227]
[1768029392031,5.95506861,136.12,136.07,6.6227]
[1768029392234,5.96775678,136.11,136.07,6.6227]
[1768029392437,0.30992682,136.13,136.07,6.6227]
[1768029392637,5.96762205,136.12,136.07,6.6227]
[1768029392836,5.96762205,136.11,136.07,6.6227]
[1768029393138,0.30992682,136.13,136.07,6.6227]
[1768029393328,5.95877125,136.12,136.07,6.6227]
[1768029393530,5.95877125,136.11,136.07,6.6227]
[1768029393735,0.30992682,136.13,136.07,6.6227]
[1768029393937,5.95865202,136.12,136.07,6.6227]
[1768029394235,5.95865202,136.11,136.07,6.6227]
[1768029394437,0.30992682,136.13,136.07,6.6227]
[1768029394638,5.95854705,136.12,136.07,6.6227]
[1768029394832,5.95854705,136.11,136.07,6.6227]
[1768029395134,0.30992682,136.13,136.07,6.6227]
[1768029395330,5.91952698,136.12,136.07,6.6227]
[1768029395526,5.91952698,136.11,136.07,6.6227]
[1768029395731,0.30992682,136.13,136.07,6.6227]
[1768029396038,5.91944161,136.12,136.07,6.6227]
[1768029396332,5.91944161,136.11,136.07,6.6227]
[1768029396537,0.30992682,136.13,136.07,6.6227]
[1768029396734,5.91916783,136.12,136.07,6.6227]
[1768029396941,5.91916783,136.11,136.07,6.6227]
[1768029397237,0.30992682,136.13,136.07,6.6227]
[1768029397438,5.91897518,136.12,136.07,6.6227]
[1768029397737,0.30992682,136.13,136.07,6.6227]
[1768029397934,5.91878127,136.12,136.07,6.6227]
[1768029398132,5.91878127,136.11,136.07,6.6227]
[1768029398333,0.30992682,136.13,136.07,6.6227]
[1768029398536,5.91900561,136.12,136.07,6.6227]
[1768029398732,5.91900561,136.11,136.07,6.6227]
[1768029398933,0.30992682,136.13,136.07,6.6227]
[1768029399132,5.91900561,136.12,136.07,6.6227]
[1768029399332,5.91900561,136.11,136.07,6.6227]
[1768029399534,0.30992682,136.13,136.07,6.6227]
[1768029399734,5.91897727,136.12,136.07,6.6227]
[1768029399941,5.91897727,136.11,136.07,6.6227]
[1768029400238,0.30992682,136.13,136.07,6.6227]
[1768029400434,5.91906414,136.12,136.07,6.6227]
[1768029400634,5.91906414,136.11,136.07,6.6227]
[1768029400836,0.30992682,136.13,136.07,6.6227]
[1768029401037,5.91906463,136.12,136.07,6.6227]
[1768029401229,5.91906463,136.11,136.07,6.6227]
[1768029401432,0.30992682,136.13,136.07,6.6227]
[1768029401632,5.91917367,136.12,136.07,6.6227]
[1768029401835,5.91917367,136.11,136.07,6.6227]
[1768029402041,0.30992682,136.13,136.07,6.6227]
[1768029402243,5.91917367,136.12,136.07,6.6227]
[1768029402442,5.91917367,136.11,136.07,6.6227]
[1768029402642,0.30992682,136.13,136.07,6.6227]
[1768029402849,5.91930799,136.12,136.07,6.6227]
[1768029403046,5.91930799,136.11,136.07,6.6227]
[1768029403355,0.30992682,136.13,136.07,6.6227]
[1768029403646,5.91061996,136.12,136.07,6.6227]
[1768029403845,5.91061996,136.11,136.07,6.6227]
[1768029404037,0.30992682,136.13,136.07,6.6227]
[1768029404238,5.91022023,136.12,136.07,6.6227]
[1768029404436,5.91022023,136.11,136.07,6.6227]
[1768029404639,0.30992682,136.13,136.07,6.6227]
[1768029404834,5.91026953,136.12,136.07,6.6227]
[1768029405047,5.91026953,136.11,136.07,6.6227]
[1768029405248,0.30992682,136.13,136.07,6.6227]
[1768029405436,5.910269,136.12,136.07,6.6227]
[1768029405638,0.30992682,136.13,136.07,6.6227]
[1768029405639,5.910269,136.11,136.07,6.6227]
[1768029405842,0.30992682,136.13,136.07,6.6227]
[1768029406048,5.910269,136.12,136.07,6.6227]
[1768029406350,5.910269,136.11,136.07,6.6227]
[1768029406542,0.30992682,136.13,136.07,6.6227]
[1768029406743,5.86132703,136.12,136.07,6.6227]
[1768029406938,5.86132703,136.11,136.07,6.6227]
[1768029407147,0.30992682,136.13,136.07,6.6227]
[1768029407442,5.86132703,136.12,136.07,6.6227]
[1768029407639,5.86132703,136.11,136.07,6.6227]
[1768029407837,0.30992682,136.13,136.07,6.6227]
[1768029408038,5.86140768,136.12,136.07,6.6227]
[1768029408244,5.86140768,136.11,136.07,6.6227]
[1768029408540,0.30992682,136.13,136.07,6.6227]
[1768029408737,5.8615035,136.12,136.07,6.6227]
[1768029408942,5.8615035,136.11,136.07,6.6227]
[1768029409241,0.30992682,136.13,136.07,6.6227]
[1768029409442,5.86120493,136.12,136.07,6.6227]
[1768029409640,6.619,136.15,136.06,0.0551885]